fUST/lending_fUST_20250806
["ID","MTS","AMOUNT","RATE_DAILY","PERIOD"]
[377470163,1754419846934,-460.0,0.00028767,2]
[377470164,1754419846944,-474.11948639,0.00028767,2]
[377470165,1754419846953,-2382.03,0.00028767,2]
[377470166,1754419846963,-460.0,0.00028767,2]
[377470167,1754419846972,-460.0,0.00028767,2]
[377470168,1754419846983,-1199.19,0.00028767,2]
[377470169,1754419846993,-460.0,0.00028767,2]
[377470170,1754419847004,-460.0,0.00028767,2]
[377470171,1754419847015,-460.0,0.00028767,2]
[377470172,1754419847026,-460.0,0.00028767,2]
[377470173,1754419847035,-460.0,0.00028767,2]
[377470174,1754419847045,-460.0,0.00028767,2]
[377470175,1754419847054,-460.0,0.00028767,2]
[377470176,1754419847063,-460.0,0.00028767,2]
[377470177,1754419847072,-460.0,0.00028767,2]
[377470178,1754419847082,-460.0,0.00028767,2]
[377470179,1754419847091,-579.23,0.00028767,2]
[377470180,1754419847101,-3997.23,0.00028767,2]
[377470181,1754419847110,-460.0,0.00028767,2]
[377470182,1754419847119,-674.09,0.00028767,2]
[377470183,1754419847129,-460.0,0.00028767,2]
[377470184,1754419847138,-516.72,0.00028767,2]
[377470185,1754419847148,-460.0,0.00028767,2]
[377470186,1754419847157,-1204.67,0.00028767,2]
[377470187,1754419847166,-460.0,0.00028767,2]
[377470188,1754419847175,-460.0,0.00028767,2]
[377470189,1754419847184,-460.0,0.00028767,2]
[377470190,1754419847194,-460.0,0.00028767,2]
[377470191,1754419847203,-460.0,0.00028767,2]
[377470192,1754419847212,-302.58,0.00028767,2]
[377470193,1754419847221,-460.0,0.00028767,2]
[377470194,1754419847232,-810.88,0.00028767,2]
[377470195,1754419847241,-664.72,0.00028767,2]
[377470196,1754419847251,-477.36,0.00028767,2]
[377470197,1754419847260,-460.0,0.00028767,2]
[377470198,1754419847270,-460.0,0.00028767,2]
[377470199,1754419847279,-261.599195,0.000288,20]
[377470200,1754419847289,-155.69,0.00028853,15]
[377470201,1754419847298,-164.24,0.00028865,15]
[377470202,1754419847307,-910.29524789,0.000289,2]
[377470203,1754419847316,-155.69,0.00028953,15]
[377470204,1754419847325,-151.86,0.00028972,15]
[377470205,1754419847335,-312.16666667,0.00029,10]
[377470206,1754419847344,-312.16666667,0.00029,10]
[377470207,1754419847353,-842.25606042,0.00029,10]
[377470208,1754419847365,-500.0,0.00029016,2]
[377470209,1754419847375,-2000.0,0.00029016,5]
[377470210,1754419847384,-460.0,0.0002904,2]
[377470211,1754419847393,-488.64,0.0002904,2]
[377470212,1754419847403,-460.0,0.0002904,2]
[377470213,1754419847412,-460.0,0.00029041,2]
[377470214,1754419847422,-460.0,0.00029041,2]
[377470215,1754419847431,-460.0,0.00029041,2]
[377470216,1754419847443,-460.36,0.00029041,2]
[377470217,1754419847452,-460.0,0.00029041,2]
[377470218,1754419847463,-801.41,0.00029041,2]
[377470219,1754419847472,-460.0,0.00029041,2]
[377470220,1754419847482,-460.0,0.00029041,2]
[377470221,1754419847493,-789.85,0.00029041,2]
[377470222,1754419847503,-261.599195,0.00029041,2]
[377470223,1754419847513,-460.0,0.00029041,2]
[377470224,1754419847523,-460.0,0.00029041,2]
[377470225,1754419847532,-522.33,0.00029041,2]
[377470226,1754419847541,-460.0,0.00029041,2]
[377470227,1754419847550,-460.0,0.00029041,2]
[377470228,1754419847559,-460.0,0.00029041,2]
[377470229,1754419847568,-1079.38,0.00029041,2]
[377470230,1754419847578,-460.0,0.00029041,2]
[377470231,1754419847587,-460.0,0.00029041,2]
[377470232,1754419847682,-460.0,0.00029041,2]
[377470233,1754419847703,-460.0,0.00029041,2]
[377470234,1754419847713,-3041.31,0.00029041,2]
[377470235,1754419847722,-478.29593608,0.00029041,2]
[377470236,1754419847732,-500.0,0.00029041,2]
[377470237,1754419847742,-837.92,0.00029041,2]
[377470238,1754419847751,-310.8460183,0.00029041,2]
[377470239,1754419847760,-820.86,0.00029041,2]
[377470240,1754419847769,-994.47,0.00029041,2]
[377470241,1754419847779,-460.0,0.00029041,2]
[377470242,1754419847788,-719.43,0.00029041,2]
[377470243,1754419847798,-460.0,0.00029041,2]
[377470244,1754419847807,-460.0,0.00029041,2]
[377470245,1754419847817,-460.0,0.00029041,2]
[377470246,1754419847826,-351.24,0.00029041,2]
[377470247,1754419847835,-483.6,0.00029041,2]
[377470248,1754419847845,-463.11,0.00029041,2]
[377470249,1754419847855,-769.44,0.00029041,2]
[377470250,1754419847864,-460.0,0.00029041,2]
[377470251,1754419847874,-563.71,0.00029041,2]
[377470252,1754419847884,-499.78,0.00029041,2]
[377470253,1754419847893,-500.0,0.00029041,2]
[377470254,1754419847903,-904.26,0.00029041,2]
[377470255,1754419847912,-1124.32,0.00029041,2]
[377470256,1754419847922,-460.0,0.00029041,2]
[377470257,1754419847932,-460.0,0.00029041,2]
[377470258,1754419847943,-38601.17,0.00029041,2]
[377470259,1754419847952,-220.05813634,0.00029041,2]
[377470260,1754419847962,-2382.03,0.00029041,2]
[377470261,1754419847973,-460.0,0.00029041,2]
[377470262,1754419847983,-460.0,0.00029041,2]
[377470263,1754419847994,-1199.19,0.00029041,2]
[377470264,1754419848004,-460.0,0.00029041,2]
[377470265,1754419848013,-460.0,0.00029041,2]
[377470266,1754419848022,-460.0,0.00029041,2]
[377470267,1754419848031,-460.0,0.00029041,2]
[377470268,1754419848041,-460.0,0.00029041,2]
[377470269,1754419848050,-460.0,0.00029041,2]
[377470270,1754419848059,-460.0,0.00029041,2]
[377470271,1754419848069,-460.0,0.00029041,2]
[377470272,1754419848078,-460.0,0.00029041,2]
[377470273,1754419848088,-460.0,0.00029041,2]
[377470274,1754419848098,-579.23,0.00029041,2]
[377470275,1754419848108,-3997.23,0.00029041,2]
[377470276,1754419848118,-460.0,0.00029041,2]
[377470277,1754419848129,-674.09,0.00029041,2]
[377470278,1754419848138,-460.0,0.00029041,2]
[377470279,1754419848148,-516.72,0.00029041,2]
[377470280,1754419848157,-460.0,0.00029041,2]
[377470281,1754419848167,-1204.67,0.00029041,2]
[377470282,1754419848177,-460.0,0.00029041,2]
[377470283,1754419848186,-460.0,0.00029041,2]
[377470284,1754419848195,-460.0,0.00029041,2]
[377470285,1754419848205,-460.0,0.00029041,2]
[377470286,1754419848214,-460.0,0.00029041,2]
[377470287,1754419848224,-460.0,0.00029041,2]
[377470288,1754419848233,-810.88,0.00029041,2]
[377470289,1754419848243,-664.72,0.00029041,2]
[377470290,1754419848252,-477.36,0.00029041,2]
[377470291,1754419848262,-460.0,0.00029041,2]
[377470292,1754419848272,-175.98,0.00029041,2]
[377470293,1754419848283,-155.69,0.00029053,15]
[377470294,1754419848292,-260.0,0.00029072,2]
[377470295,1754419848302,-151.86,0.00029072,15]
[377470296,1754419848312,-155.69,0.00029153,15]
[377470297,1754419848322,-261.599195,0.00029164,20]
[377470298,1754419848332,-151.86,0.00029172,15]
[377470299,1754419848341,-155.69,0.00029253,15]
[377470300,1754419848351,-151.86,0.00029272,15]
[377470301,1754419848364,-608.88760682,0.00029314,2]
[377470302,1754419848374,-488.64,0.00029314,2]
[377470303,1754419848384,-602.1,0.00029314,2]
[377470304,1754419848394,-460.0,0.00029315,2]
[377470305,1754419848405,-460.0,0.00029315,2]
[377470306,1754419848415,-460.0,0.00029315,2]
[377470307,1754419848424,-460.36,0.00029315,2]
[377470308,1754419848435,-460.0,0.00029315,2]
[377470309,1754419848444,-801.41,0.00029315,2]
[377470310,1754419848454,-460.0,0.00029315,2]
[377470311,1754419848463,-460.0,0.00029315,2]
[377470312,1754419848472,-789.85,0.00029315,2]
[377470313,1754419848482,-460.0,0.00029315,2]
[377470314,1754419848492,-522.33,0.00029315,2]
[377470315,1754419848501,-460.0,0.00029315,2]
[377470316,1754419848511,-460.0,0.00029315,2]
[377470317,1754419848520,-1079.38,0.00029315,2]
[377470318,1754419848530,-460.0,0.00029315,2]
[377470319,1754419848540,-460.0,0.00029315,2]
[377470320,1754419848549,-467.92,0.00029315,2]
[377470321,1754419848560,-3041.31,0.00029315,2]
[377470322,1754419848569,-837.92,0.00029315,2]
[377470323,1754419848578,-820.86,0.00029315,2]
[377470324,1754419848588,-994.47,0.00029315,2]
[377470325,1754419848598,-719.43,0.00029315,2]
[377470326,1754419848607,-460.0,0.00029315,2]
[377470327,1754419848616,-242.27,0.00029315,2]
[377470328,1754419848626,-460.0,0.00029315,2]
[377470329,1754419848635,-483.6,0.00029315,2]
[377470330,1754419848645,-463.11,0.00029315,2]
[377470331,1754419848654,-769.44,0.00029315,2]
[377470332,1754419848664,-429.62078725,0.00029315,2]
[377470333,1754419848674,-563.71,0.00029315,2]
[377470334,1754419848683,-499.78,0.00029315,2]
[377470335,1754419848693,-470.82,0.00029315,2]
[377470336,1754419848702,-904.26,0.00029315,2]
[377470337,1754419848711,-1124.32,0.00029315,2]
[377470338,1754419848720,-460.0,0.00029315,2]
[377470339,1754419848730,-471.15,0.00029315,2]
[377470340,1754419848739,-38601.17,0.00029315,2]
[377470341,1754419848748,-2382.03,0.00029315,2]
[377470342,1754419848756,-460.0,0.00029315,2]
[377470343,1754419848766,-460.0,0.00029315,2]
[377470344,1754419848775,-1199.19,0.00029315,2]
[377470345,1754419848784,-460.0,0.00029315,2]
[377470346,1754419848793,-460.0,0.00029315,2]
[377470347,1754419848803,-460.0,0.00029315,2]
[377470348,1754419848812,-417.9,0.00029315,2]
[377470349,1754419848821,-460.0,0.00029315,2]
[377470350,1754419848831,-460.0,0.00029315,2]
[377470351,1754419848840,-460.0,0.00029315,2]
[377470352,1754419848850,-460.0,0.00029315,2]
[377470353,1754419848860,-460.0,0.00029315,2]
[377470354,1754419848869,-579.23,0.00029315,2]
[377470355,1754419848878,-3997.23,0.00029315,2]
[377470356,1754419848887,-460.0,0.00029315,2]
[377470357,1754419848896,-674.09,0.00029315,2]
[377470358,1754419848905,-567.56,0.00029315,2]
[377470359,1754419848915,-516.72,0.00029315,2]
[377470360,1754419848923,-460.0,0.00029315,2]
[377470361,1754419848932,-1204.67,0.00029315,2]
[377470362,1754419848941,-460.0,0.00029315,2]
[377470363,1754419848950,-460.0,0.00029315,2]
[377470364,1754419848959,-460.0,0.00029315,2]
[377470365,1754419848968,-460.0,0.00029315,2]
[377470366,1754419848977,-460.0,0.00029315,2]
[377470367,1754419848987,-460.0,0.00029315,2]
[377470368,1754419848995,-810.88,0.00029315,2]
[377470369,1754419849005,-664.72,0.00029315,2]
[377470370,1754419849014,-477.36,0.00029315,2]
[377470371,1754419849024,-460.0,0.00029315,2]
[377470372,1754419849033,-155.69,0.00029353,15]
[377470373,1754419849042,-151.86,0.00029372,15]
[377470374,1754419849051,-461.15695721,0.00029392,2]
[377470375,1754419849061,-231.72586818,0.00029392,2]
[377470376,1754419849069,-160.0,0.00029392,2]
[377470377,1754419849078,-160.0,0.00029392,2]
[377470378,1754419849087,-160.0,0.00029392,2]
[377470379,1754419849096,-216.4206905,0.00029392,2]
[377470380,1754419849105,-160.0,0.00029392,2]
[377470381,1754419849114,-160.0,0.00029392,2]
[377470382,1754419849124,-160.0,0.00029404,2]
[377470383,1754419849133,-160.0,0.00029404,2]
[377470384,1754419849144,-160.0,0.00029404,2]
[377470385,1754419849153,-155.69,0.00029453,15]
[377470386,1754419849162,-151.86,0.00029472,15]
[377470387,1754419849171,-7365.94360047,0.00029489,2]
[377470388,1754419849180,-261.599195,0.00029528,20]
[377470389,1754419849188,-155.69,0.00029553,15]
[377470390,1754419849198,-2500.0,0.00029564,5]
[377470391,1754419849206,-151.86,0.00029572,15]
[377470392,1754419849215,-488.64,0.00029588,2]
[377470393,1754419849224,-460.0,0.00029589,2]
[377470394,1754419849233,-460.0,0.00029589,2]
[377470395,1754419849242,-460.0,0.00029589,2]
[377470396,1754419849252,-460.36,0.00029589,2]
[377470397,1754419849261,-460.0,0.00029589,2]
[377470398,1754419849270,-801.41,0.00029589,2]
[377470399,1754419849279,-460.0,0.00029589,2]
[377470400,1754419849288,-460.0,0.00029589,2]
[377470401,1754419849297,-789.85,0.00029589,2]
[377470402,1754419849307,-460.0,0.00029589,2]
[377470403,1754419849316,-522.33,0.00029589,2]
[377470404,1754419849325,-460.0,0.00029589,2]
[377470405,1754419849334,-1079.38,0.00029589,2]
[377470406,1754419849343,-460.0,0.00029589,2]
[377470407,1754419849352,-460.0,0.00029589,2]
[377470408,1754419849364,-3041.31,0.00029589,2]
[377470409,1754419849376,-837.92,0.00029589,2]
[377470410,1754419849385,-820.86,0.00029589,2]
[377470411,1754419849394,-994.47,0.00029589,2]
[377470412,1754419849405,-719.43,0.00029589,2]
[377470413,1754419849414,-460.0,0.00029589,2]
[377470414,1754419849423,-460.0,0.00029589,2]
[377470415,1754419849432,-483.6,0.00029589,2]
[377470416,1754419849441,-463.11,0.00029589,2]
[377470417,1754419849450,-769.44,0.00029589,2]
[377470418,1754419849459,-563.71,0.00029589,2]
[377470419,1754419849469,-499.78,0.00029589,2]
[377470420,1754419849478,-904.26,0.00029589,2]
[377470421,1754419849487,-1124.32,0.00029589,2]
[377470422,1754419849496,-460.0,0.00029589,2]
[377470423,1754419849505,-38601.17,0.00029589,2]
[377470424,1754419849514,-2382.03,0.00029589,2]
[377470425,1754419849523,-460.0,0.00029589,2]
[377470426,1754419849532,-227.12,0.00029589,2]
[377470427,1754419849540,-1199.19,0.00029589,2]
[377470428,1754419849549,-460.0,0.00029589,2]
[377470429,1754419849558,-460.0,0.00029589,2]
[377470430,1754419849567,-460.0,0.00029589,2]
[377470431,1754419849577,-460.0,0.00029589,2]
[377470432,1754419849587,-460.0,0.00029589,2]
[377470433,1754419849596,-460.0,0.00029589,2]
[377470434,1754419849605,-460.0,0.00029589,2]
[377470435,1754419849614,-579.23,0.00029589,2]
[377470436,1754419849625,-3997.23,0.00029589,2]
[377470437,1754419849634,-674.09,0.00029589,2]
[377470438,1754419849643,-516.72,0.00029589,2]
[377470439,1754419849653,-1204.67,0.00029589,2]
[377470440,1754419849663,-460.0,0.00029589,2]
[377470441,1754419849673,-460.0,0.00029589,2]
[377470442,1754419849682,-337.68,0.00029589,2]
[377470443,1754419849691,-460.0,0.00029589,2]
[377470444,1754419849700,-460.0,0.00029589,2]
[377470445,1754419849709,-451.11441632,0.00029589,2]
[377470446,1754419849719,-810.88,0.00029589,2]
[377470447,1754419849729,-664.72,0.00029589,2]
[377470448,1754419849739,-477.36,0.00029589,2]
[377470449,1754419849748,-460.0,0.00029589,2]
[377470450,1754419849759,-360.0,0.0002962,2]
[377470451,1754419849768,-155.69,0.00029653,15]
[377470452,1754419849777,-151.86,0.00029672,15]
[377470453,1754419849786,-155.69,0.00029753,15]
[377470454,1754419849796,-155.69,0.00029853,15]
[377470455,1754419849804,-488.64,0.00029862,2]
[377470456,1754419849813,-460.0,0.00029863,2]
[377470457,1754419849822,-267.06,0.00029863,2]
[377470458,1754419849831,-460.0,0.00029863,2]
[377470459,1754419849840,-460.36,0.00029863,2]
[377470460,1754419849849,-460.0,0.00029863,2]
[377470461,1754419849860,-801.41,0.00029863,2]
[377470462,1754419849869,-460.0,0.00029863,2]
[377470463,1754419849879,-460.0,0.00029863,2]
[377470464,1754419849888,-789.85,0.00029863,2]
[377470465,1754419849897,-460.0,0.00029863,2]
[377470466,1754419849907,-522.33,0.00029863,2]
[377470467,1754419849916,-460.0,0.00029863,2]
[377470468,1754419849925,-1079.38,0.00029863,2]
[377470469,1754419850018,-460.0,0.00029863,2]
[377470470,1754419850040,-460.0,0.00029863,2]
[377470471,1754419850049,-3041.31,0.00029863,2]
[377470472,1754419850058,-837.92,0.00029863,2]
[377470473,1754419850068,-820.86,0.00029863,2]
[377470474,1754419850077,-994.47,0.00029863,2]
[377470475,1754419850086,-719.43,0.00029863,2]
[377470476,1754419850095,-460.0,0.00029863,2]
[377470477,1754419850105,-460.0,0.00029863,2]
[377470478,1754419850114,-483.6,0.00029863,2]
[377470479,1754419850124,-463.11,0.00029863,2]
[377470480,1754419850133,-769.44,0.00029863,2]
[377470481,1754419850142,-563.71,0.00029863,2]
[377470482,1754419850152,-499.78,0.00029863,2]
[377470483,1754419850162,-904.26,0.00029863,2]
[377470484,1754419850171,-1124.32,0.00029863,2]
[377470485,1754419850180,-460.0,0.00029863,2]
[377470486,1754419850189,-38601.17,0.00029863,2]
[377470487,1754419850198,-2382.03,0.00029863,2]
[377470488,1754419850207,-460.0,0.00029863,2]
[377470489,1754419850216,-1199.19,0.00029863,2]
[377470490,1754419850225,-460.0,0.00029863,2]
[377470491,1754419850235,-460.0,0.00029863,2]
[377470492,1754419850244,-460.0,0.00029863,2]
[377470493,1754419850254,-460.0,0.00029863,2]
[377470494,1754419850263,-460.0,0.00029863,2]
[377470495,1754419850273,-460.0,0.00029863,2]
[377470496,1754419850282,-460.0,0.00029863,2]
[377470497,1754419850291,-579.23,0.00029863,2]
[377470498,1754419850301,-3997.23,0.00029863,2]
[377470499,1754419850310,-674.09,0.00029863,2]
[377470500,1754419850319,-516.72,0.00029863,2]
[377470501,1754419850328,-580.59,0.00029863,2]
[377470502,1754419850338,-1204.67,0.00029863,2]
[377470503,1754419850347,-460.0,0.00029863,2]
[377470504,1754419850358,-460.0,0.00029863,2]
[377470505,1754419850370,-460.0,0.00029863,2]
[377470506,1754419850379,-810.88,0.00029863,2]
[377470507,1754419850389,-664.72,0.00029863,2]
[377470508,1754419850399,-477.36,0.00029863,2]
[377470509,1754419850408,-460.0,0.00029863,2]
[377470510,1754419850417,-261.599195,0.00029892,20]
[377470511,1754419850427,-156.531808,0.00029892,20]
[377470512,1754419850437,-155.69,0.00029953,15]
[377470513,1754419850447,-155.69,0.00030053,15]
[377470514,1754419850456,-2452.51557378,0.00030112,5]
[377470515,1754419850466,-460.0,0.00030136,2]
[377470516,1754419850475,-460.0,0.00030136,2]
[377470517,1754419850484,-460.36,0.00030136,2]
[377470518,1754419850494,-460.0,0.00030136,2]
[377470519,1754419850504,-801.41,0.00030136,2]
[377470520,1754419850513,-460.0,0.00030136,2]
[377470521,1754419850523,-490.72,0.00030136,2]
[377470522,1754419850532,-789.85,0.00030136,2]
[377470523,1754419850541,-285.42914648,0.00030136,2]
[377470524,1754419850551,-522.33,0.00030136,2]
[377470525,1754419850560,-306.72,0.00030136,2]
[377470526,1754419850570,-1079.38,0.00030136,2]
[377470527,1754419850579,-460.0,0.00030136,2]
[377470528,1754419850589,-460.0,0.00030136,2]
[377470529,1754419850599,-3041.31,0.00030136,2]
[377470530,1754419850608,-837.92,0.00030136,2]
[377470531,1754419850617,-820.86,0.00030136,2]
[377470532,1754419850632,-994.47,0.00030136,2]
[377470533,1754419850641,-719.43,0.00030136,2]
[377470534,1754419850651,-460.0,0.00030136,2]
[377470535,1754419850660,-460.0,0.00030136,2]
[377470536,1754419850669,-483.6,0.00030136,2]
[377470537,1754419850679,-463.11,0.00030136,2]
[377470538,1754419850688,-769.44,0.00030136,2]
[377470539,1754419850697,-563.71,0.00030136,2]
[377470540,1754419850707,-499.78,0.00030136,2]
[377470541,1754419850716,-904.26,0.00030136,2]
[377470542,1754419850725,-1124.32,0.00030136,2]
[377470543,1754419850734,-460.0,0.00030136,2]
[377470544,1754419850743,-38601.17,0.00030136,2]
[377470545,1754419850752,-488.64,0.00030136,2]
[377470546,1754419850770,-2382.03,0.00030136,2]
[377470547,1754419850787,-460.0,0.00030136,2]
[377470548,1754419850796,-1199.19,0.00030136,2]
[377470549,1754419850806,-460.0,0.00030136,2]
[377470550,1754419850825,-460.0,0.00030136,2]
[377470551,1754419850836,-460.0,0.00030136,2]
[377470552,1754419850845,-460.0,0.00030136,2]
[377470553,1754419850856,-347.18,0.00030136,2]
[377470554,1754419850866,-460.0,0.00030136,2]
[377470555,1754419850878,-460.0,0.00030136,2]
[377470556,1754419850887,-579.23,0.00030136,2]
[377470557,1754419850897,-3997.23,0.00030136,2]
[377470558,1754419850906,-674.09,0.00030136,2]
[377470559,1754419850916,-516.72,0.00030136,2]
[377470560,1754419850926,-1204.67,0.00030136,2]
[377470561,1754419850936,-460.0,0.00030136,2]
[377470562,1754419850946,-460.0,0.00030136,2]
[377470563,1754419850956,-468.5,0.00030136,2]
[377470564,1754419850966,-810.88,0.00030136,2]
[377470565,1754419850975,-664.72,0.00030136,2]
[377470566,1754419850985,-477.36,0.00030136,2]
[377470567,1754419850994,-460.0,0.00030136,2]
[377470568,1754419851003,-155.69,0.00030153,15]
[377470569,1754419851012,-587.0,0.0003016,2]
[377470570,1754419851022,-460.0,0.00030168,2]
[377470571,1754419851031,-155.69,0.00030253,15]
[377470572,1754419851040,-261.599195,0.00030256,20]
[377470573,1754419851049,-156.531808,0.00030256,20]
[377470574,1754419851059,-155.69,0.00030353,15]
[377470575,1754419851070,-282803.94,0.000304,4]
[377470576,1754419851080,-434585.95,0.000304,4]
[377470577,1754419851089,-257532.59,0.000304,4]
[377470578,1754419851099,-207190.36318718,0.000304,4]
[377470579,1754419851210,-586954.17681282,0.000304,4]
[377470580,1754419851220,-460.0,0.0003041,2]
[377470581,1754419851229,-460.0,0.0003041,2]
[377470582,1754419851239,-460.36,0.0003041,2]
[377470583,1754419851249,-460.0,0.0003041,2]
[377470584,1754419851259,-801.41,0.0003041,2]
[377470585,1754419851268,-460.0,0.0003041,2]
[377470586,1754419851277,-789.85,0.0003041,2]
[377470587,1754419851287,-522.33,0.0003041,2]
[377470588,1754419851297,-1079.38,0.0003041,2]
[377470589,1754419851307,-460.0,0.0003041,2]
[377470590,1754419851316,-460.0,0.0003041,2]
[377470591,1754419851326,-3041.31,0.0003041,2]
[377470592,1754419851336,-837.92,0.0003041,2]
[377470593,1754419851345,-820.86,0.0003041,2]
[377470594,1754419851355,-994.47,0.0003041,2]
[377470595,1754419851369,-719.43,0.0003041,2]
[377470596,1754419851378,-460.0,0.0003041,2]
[377470597,1754419851387,-460.0,0.0003041,2]
[377470598,1754419851397,-483.6,0.0003041,2]
[377470599,1754419851407,-463.11,0.0003041,2]
[377470600,1754419851416,-769.44,0.0003041,2]
[377470601,1754419851425,-563.71,0.0003041,2]
[377470602,1754419851434,-499.78,0.0003041,2]
[377470603,1754419851446,-904.26,0.0003041,2]
[377470604,1754419851455,-1124.32,0.0003041,2]
[377470605,1754419851465,-460.0,0.0003041,2]
[377470606,1754419851475,-38601.17,0.0003041,2]
[377470607,1754419851485,-488.64,0.0003041,2]
[377470608,1754419851495,-2382.03,0.0003041,2]
[377470609,1754419851504,-460.0,0.0003041,2]
[377470610,1754419851514,-1199.19,0.0003041,2]
[377470611,1754419851523,-460.0,0.0003041,2]
[377470612,1754419851532,-460.0,0.0003041,2]
[377470613,1754419851542,-460.0,0.0003041,2]
[377470614,1754419851551,-460.0,0.0003041,2]
[377470615,1754419851560,-182.79,0.0003041,2]
[377470616,1754419851569,-460.0,0.0003041,2]
[377470617,1754419851578,-579.23,0.0003041,2]
[377470618,1754419851587,-3997.23,0.0003041,2]
[377470619,1754419851596,-674.09,0.0003041,2]
[377470620,1754419851605,-516.72,0.0003041,2]
[377470621,1754419851614,-460.0,0.0003041,2]
[377470622,1754419851625,-1204.67,0.0003041,2]
[377470623,1754419851634,-460.0,0.0003041,2]
[377470624,1754419851644,-810.88,0.0003041,2]
[377470625,1754419851654,-664.72,0.0003041,2]
[377470626,1754419851663,-477.36,0.0003041,2]
[377470627,1754419851673,-460.0,0.0003041,2]
[377470628,1754419851682,-155.69,0.00030453,15]
[377470629,1754419851691,-1026.39,0.000305,2]
[377470630,1754419851700,-155.69,0.00030553,15]
[377470631,1754419851709,-155.69,0.00030653,15]
[377470632,1754419851719,-460.0,0.00030684,2]
[377470633,1754419851728,-460.0,0.00030684,2]
[377470634,1754419851737,-460.36,0.00030684,2]
[377470635,1754419851746,-460.0,0.00030684,2]
[377470636,1754419851755,-801.41,0.00030684,2]
[377470637,1754419851765,-436.53732904,0.00030684,2]
[377470638,1754419851774,-789.85,0.00030684,2]
[377470639,1754419851783,-522.33,0.00030684,2]
[377470640,1754419851792,-1079.38,0.00030684,2]
[377470641,1754419851802,-460.0,0.00030684,2]
[377470642,1754419851811,-460.0,0.00030684,2]
[377470643,1754419851821,-3041.31,0.00030684,2]
[377470644,1754419851831,-837.92,0.00030684,2]
[377470645,1754419851839,-820.86,0.00030684,2]
[377470646,1754419851849,-994.47,0.00030684,2]
[377470647,1754419851858,-719.43,0.00030684,2]
[377470648,1754419851868,-460.0,0.00030684,2]
[377470649,1754419851879,-460.0,0.00030684,2]
[377470650,1754419851889,-483.6,0.00030684,2]
[377470651,1754419851899,-463.11,0.00030684,2]
[377470652,1754419851908,-769.44,0.00030684,2]
[377470653,1754419851917,-563.71,0.00030684,2]
[377470654,1754419851927,-499.78,0.00030684,2]
[377470655,1754419851937,-904.26,0.00030684,2]
[377470656,1754419851946,-1124.32,0.00030684,2]
[377470657,1754419851955,-460.0,0.00030684,2]
[377470658,1754419851965,-488.64,0.00030684,2]
[377470659,1754419851974,-38601.17,0.00030684,2]
[377470660,1754419851983,-2382.03,0.00030684,2]
[377470661,1754419851992,-460.0,0.00030684,2]
[377470662,1754419852002,-1199.19,0.00030684,2]